bitfinex/quotes_BTCUSD_20240729
["timestamp","ask_amount","ask_price","bid_price","bid_amount"]
[1722258630723,0.04751269,69923.0,69922.0,0.71950946]
[1722258630893,0.01179997,69933.0,69932.0,0.00700946]
[1722258631070,0.20229404,69933.0,69932.0,0.10600946]
[1722258631276,0.13135278,69933.0,69932.0,0.1198477]
[1722258631474,0.12315197,69933.0,69932.0,0.1198477]
[1722258632099,0.12315197,69933.0,69932.0,0.1020924]
[1722258632340,0.111352,69933.0,69932.0,0.1010924]
[1722258632708,0.111352,69933.0,69932.0,0.09909241]
[1722258633661,0.0304431,69933.0,69932.0,0.09909241]
[1722258633788,0.0304431,69933.0,69932.0,0.11615601]
[1722258634214,0.011352,69933.0,69932.0,0.11615601]
[1722258634595,0.01561797,69934.0,69933.0,0.09909241]
[1722258635003,0.04587525,69934.0,69933.0,0.09909241]
[1722258636292,0.07364664,69934.0,69933.0,0.09909241]
[1722258636500,0.07364664,69934.0,69933.0,0.11070801]
[1722258637347,0.07364664,69934.0,69933.0,9.241e-05]
[1722258637686,0.07344338,69934.0,69933.0,0.09909241]
[1722258638082,0.07444338,69934.0,69933.0,0.09909241]
[1722258638818,0.21754277,69934.0,69933.0,0.09909241]
[1722258639017,0.31754277,69934.0,69933.0,0.09909241]
[1722258640166,0.17444338,69934.0,69933.0,0.10900165]
[1722258640742,0.17399865,69934.0,69933.0,0.10900165]
[1722258641320,0.17452614,69934.0,69933.0,0.10900165]
[1722258641526,0.12781861,69934.0,69933.0,0.10900165]
[1722258641722,0.01304064,69934.0,69933.0,0.10900165]
[1722258641887,0.00184,69934.0,69933.0,0.17440165]
[1722258642087,0.00184,69934.0,69933.0,0.25550165]
[1722258644338,0.00084,69934.0,69933.0,0.25550165]
[1722258644740,0.00184,69934.0,69933.0,0.26450165]
[1722258645222,0.00084,69934.0,69933.0,0.25550165]
[1722258645685,0.00184,69934.0,69933.0,0.26950165]
[1722258654344,0.00184,69934.0,69933.0,0.25959241]
[1722258655123,0.00184,69934.0,69933.0,0.17849241]
[1722258655357,0.00184,69934.0,69933.0,0.11309241]
[1722258655804,0.02965449,69934.0,69933.0,0.11309241]
[1722258656018,0.0561228,69934.0,69933.0,0.11309241]
[1722258656662,0.19872603,69934.0,69933.0,0.064]
[1722258656872,0.29872603,69934.0,69933.0,0.11309241]
[1722258657077,0.29872603,69934.0,69933.0,0.01409241]
[1722258657078,0.36300835,69934.0,69933.0,0.01409241]
[1722258657281,0.36300835,69934.0,69933.0,0.014]
[1722258657282,0.3844358,69934.0,69933.0,0.014]
[1722258657487,0.29872603,69934.0,69933.0,0.014]
[1722258657686,0.29772603,69934.0,69932.0,0.00101641]
[1722258657891,0.27603023,69933.0,69932.0,0.00101641]
[1722258658335,0.27603023,69933.0,69932.0,0.11001805]
[1722258658336,0.28253259,69933.0,69932.0,0.11001805]
[1722258658564,0.05371534,69933.0,69932.0,0.11001805]
[1722258658830,0.04721298,69933.0,69932.0,0.11001805]
[1722258659056,0.00084,69934.0,69933.0,0.09909241]
[1722258659282,0.00084,69934.0,69933.0,0.13163857]
[1722258662381,0.00184,69934.0,69933.0,0.13963857]
[1722258670497,0.00184,69934.0,69933.0,0.14163857]
[1722258670697,0.00184,69934.0,69933.0,0.19163857]
[1722258671146,0.00184,69934.0,69933.0,0.14163857]
[1722258671436,0.00184,69934.0,69933.0,0.19163857]
[1722258671654,0.00184,69934.0,69933.0,0.39913796]
[1722258671855,0.00184,69934.0,69933.0,0.62323196]
[1722258672080,0.08564745,69960.0,69933.0,0.62323196]
[1722258672081,0.14534747,69975.0,69971.0,0.05]
[1722258672284,0.42926131,69972.0,69971.0,0.05]
[1722258672618,0.24289238,69972.0,69971.0,0.09909241]
[1722258672864,0.20009623,69972.0,69969.0,9.241e-05]
[1722258673045,0.20009623,69971.0,69970.0,0.01000165]
[1722258673251,0.20009623,69971.0,69967.0,9.241e-05]
[1722258673462,0.20009623,69971.0,69967.0,0.09909241]
[1722258673463,0.05699684,69970.0,69967.0,0.09909241]
[1722258673617,0.04279782,69972.0,69971.0,0.09909241]
[1722258673822,0.0810958,69975.0,69974.0,0.09909241]
[1722258674021,0.28063038,69975.0,69974.0,0.10900165]
[1722258674236,0.28063038,69975.0,69974.0,0.05990924]
[1722258674237,0.38063038,69975.0,69974.0,0.05990924]
[1722258674438,0.28768583,69975.0,69974.0,0.05]
[1722258674674,0.38036889,69975.0,69974.0,0.05]
[1722258675025,0.38036889,69975.0,69974.0,0.09909241]
[1722258675246,0.29930431,69975.0,69974.0,0.10900165]
[1722258675449,0.19930431,69975.0,69974.0,0.10900165]
[1722258675658,0.05620492,69975.0,69974.0,0.10900165]
[1722258675884,0.02860647,69975.0,69974.0,0.10900165]
[1722258676054,0.01415384,69977.0,69975.0,9.241e-05]
[1722258676261,0.05651304,69976.0,69975.0,0.11754258]
[1722258676487,0.14309939,69980.0,69979.0,0.09909241]
[1722258676689,0.11497281,69990.0,69985.0,0.04909241]
[1722258676690,0.05082512,69990.0,69985.0,0.04909241]
[1722258676916,0.00806,69990.0,69989.0,0.09909241]
[1722258677914,0.00806,69990.0,69989.0,0.10194984]
[1722258678113,0.00806,69990.0,69989.0,0.09909241]
[1722258678475,0.00806,69990.0,69989.0,0.16019241]
[1722258680270,0.1,70012.0,69989.0,0.16019241]
[1722258680271,0.04263237,70032.0,70023.0,0.07154355]
[1722258680509,0.10658504,70044.0,70023.0,0.07154355]
[1722258680510,0.10658504,70054.0,70044.0,0.05]
[1722258680762,0.08062242,70072.0,70044.0,0.15]
[1722258680958,0.2064,70070.0,70044.0,0.2148]
[1722258681159,0.0657,70072.0,70044.0,0.2148]
[1722258681160,0.2064,70062.0,70044.0,0.2148]
[1722258681311,0.0751,70054.0,70044.0,0.05]
[1722258681515,0.15114939,70045.0,70041.0,0.0015542]
[1722258681715,0.14309939,70044.0,70043.0,0.15]
[1722258682130,0.00805,70045.0,70044.0,0.15]
[1722258684443,0.00805,70045.0,70044.0,0.44089939]
[1722258684803,0.00805,70045.0,70044.0,0.58566639]
[1722258684983,0.00805,70045.0,70044.0,0.48366639]
[1722258685140,0.00805,70045.0,70044.0,0.58366639]
[1722258685341,0.00805,70045.0,70044.0,0.92120039]
[1722258685602,0.00805,70045.0,70044.0,0.91920039]
[1722258685806,0.00805,70045.0,70044.0,0.44089939]
[1722258686011,0.00805,70045.0,70044.0,0.63366639]
[1722258686148,0.07451268,70079.0,70054.0,0.15]
[1722258686602,0.0602,70079.0,70054.0,0.152]
[1722258686802,0.0602,70079.0,70054.0,0.15]
[1722258687004,0.0602,70079.0,70054.0,0.15285435]
[1722258687870,0.01391831,70084.0,70054.0,0.15285435]
[1722258688290,0.01391831,70084.0,70054.0,0.15]
[1722258688491,0.01391831,70084.0,70054.0,0.34595374]
[1722258688692,0.01391831,70084.0,70054.0,0.72619474]
[1722258688919,0.1,70086.0,70054.0,0.72134039]
[1722258689119,0.0832,70087.0,70054.0,0.72134039]
[1722258689353,0.0832,70087.0,70054.0,0.29309939]
[1722258689523,0.0137639,70086.0,70054.0,0.15]
[1722258689894,0.1137639,70086.0,70054.0,0.15]
[1722258690423,0.1137639,70086.0,70064.0,0.1]
[1722258690651,0.2564459,70086.0,70064.0,0.15]
[1722258690845,0.2564459,70086.0,70064.0,0.05]
[1722258691009,0.2564459,70086.0,70064.0,0.15]
[1722258691010,0.08601,70084.0,70064.0,0.15]
[1722258691209,0.20864939,70065.0,70063.0,0.05]
[1722258691427,0.14309939,70064.0,70063.0,0.05]
[1722258691638,0.14309939,70064.0,70061.0,0.05]
[1722258691901,0.14309939,70064.0,70051.0,0.15]
[1722258692115,0.1,70063.0,70053.0,0.05]
[1722258692322,0.1,70063.0,70041.0,0.07154355]
[1722258692323,0.14309939,70062.0,70061.0,0.15]
[1722258692610,0.00305,70065.0,70064.0,0.15]
[1722258695255,0.00305,70065.0,70064.0,0.158]
[1722258695664,0.00305,70065.0,70064.0,0.68655239]
[1722258695839,0.00305,70065.0,70064.0,0.158]
[1722258696038,0.09524662,70097.0,70095.0,0.05]
[1722258696039,0.01424662,70097.0,70095.0,0.05]
[1722258696274,0.0663,70109.0,70095.0,0.05]
[1722258696275,0.0663,70109.0,70095.0,0.15]
[1722258696640,0.02218859,70108.0,70095.0,0.15]
[1722258697937,0.00805,70108.0,70095.0,0.15]
[1722258698151,0.15113939,70096.0,70095.0,0.05]
[1722258698359,0.15113939,70096.0,70095.0,0.15]
[1722258698556,0.15113939,70096.0,70094.0,0.15]
[1722258698758,0.14309939,70095.0,70094.0,0.15]
[1722258698971,0.14309939,70095.0,70094.0,0.05]
[1722258699175,0.14309939,70095.0,70094.0,0.15]
[1722258699619,0.14309939,70095.0,70082.0,0.07154355]
[1722258699620,0.14309939,70095.0,70091.0,0.05]
[1722258699825,0.14309939,70095.0,70090.0,0.05]
[1722258700030,0.14309939,70095.0,70087.0,0.05]
[1722258700228,0.1,70094.0,70087.0,0.05]
[1722258700566,0.14309939,70093.0,70087.0,0.15]
[1722258700973,0.14309939,70093.0,70087.0,0.05]
[1722258701183,0.20889939,70090.0,70078.0,0.05]
[1722258701392,0.20889939,70090.0,70080.0,0.05]
[1722258701800,0.20889939,70090.0,70082.0,0.05]
[1722258702217,0.20889939,70090.0,70072.0,0.07154355]
[1722258702218,0.20889939,70090.0,70089.0,0.05]
[1722258702412,0.30889939,70090.0,70085.0,0.05]
[1722258702610,0.20889939,70090.0,70085.0,0.05]
[1722258702813,0.20889939,70090.0,70085.0,0.15]
[1722258702814,0.20389939,70090.0,70085.0,0.15]
[1722258703131,0.20389939,70090.0,70089.0,0.05]
[1722258703259,0.30389939,70090.0,70087.0,0.05]
[1722258703459,0.30389939,70090.0,70085.0,0.15]
[1722258703460,0.20389939,70090.0,70085.0,0.15]
[1722258703665,0.20389939,70090.0,70085.0,0.05]
[1722258703865,0.20389939,70090.0,70081.0,0.05]
[1722258704115,0.20389939,70090.0,70078.0,0.1]
[1722258704116,0.142679,70088.0,70078.0,0.05]
[1722258704313,0.14309939,70087.0,70078.0,0.05]
[1722258706087,0.14309939,70087.0,70059.0,0.0777]
[1722258706088,0.14309939,70082.0,70069.0,0.05]
[1722258706254,0.14309939,70078.0,70066.0,0.05]
[1722258706455,0.14309939,70078.0,70069.0,0.05]
[1722258706705,0.1,70077.0,70069.0,0.05]
[1722258706873,0.14309939,70076.0,70068.0,0.05]
[1722258707071,0.14309939,70076.0,70066.0,0.1]
[1722258707072,0.14309939,70076.0,70066.0,0.05]
[1722258707385,0.14309939,70076.0,70066.0,0.15]
[1722258707937,0.14309939,70076.0,70073.0,0.05]
[1722258708157,0.14309939,70076.0,70071.0,0.07154355]
[1722258708158,0.14309939,70076.0,70075.0,0.15]
[1722258708540,0.1,70085.0,70078.0,0.05]
[1722258708541,0.14309939,70084.0,70078.0,0.05]
[1722258708739,0.1,70083.0,70078.0,0.05]
[1722258708962,0.1,70083.0,70079.0,0.07154355]
[1722258708963,0.14309939,70082.0,70079.0,0.07154355]
[1722258709164,0.1,70081.0,70080.0,0.05]
[1722258709369,0.1,70081.0,70078.0,0.05]
[1722258709370,0.24309939,70081.0,70078.0,0.05]
[1722258709572,0.14309939,70080.0,70076.0,0.05]
[1722258709892,0.1,70079.0,70072.0,0.05]
[1722258710094,0.14309939,70078.0,70068.0,0.1]
[1722258710246,0.14309939,70078.0,70066.0,0.05]
[1722258710247,0.28579739,70078.0,70066.0,0.05]
[1722258710446,0.28579739,70078.0,70067.0,0.05]
[1722258710447,0.14309939,70078.0,70067.0,0.05]
[1722258710699,0.009,70076.0,70067.0,0.05]
[1722258710875,0.14309939,70075.0,70067.0,0.05]
[1722258711238,0.1,70079.0,70067.0,0.05]
[1722258711239,0.1,70079.0,70078.0,0.05]
[1722258711446,0.14309939,70079.0,70078.0,0.15]
[1722258711640,0.1608,70090.0,70085.0,0.05]
[1722258712020,0.14309939,70086.0,70085.0,0.05]
[1722258712221,0.24309939,70086.0,70085.0,0.05]
[1722258713331,0.24309939,70086.0,70080.0,0.05]
[1722258713531,0.1,70085.0,70080.0,0.05]
[1722258713691,0.14309939,70084.0,70080.0,0.05]
[1722258713892,0.1,70083.0,70080.0,0.05]
[1722258714094,0.14309939,70082.0,70080.0,0.05]
[1722258714499,0.14309939,70082.0,70065.0,0.076]
[1722258714500,0.14309939,70082.0,70078.0,0.05]
[1722258714931,0.1,70083.0,70069.0,0.05]
[1722258714932,0.14309939,70080.0,70069.0,0.05]
[1722258715329,0.1,70079.0,70068.0,0.05]
[1722258715549,0.1,70079.0,70070.0,0.05]
[1722258715550,0.14309939,70078.0,70070.0,0.05]
[1722258715751,0.14309939,70078.0,70067.0,0.07154355]
[1722258715752,0.1,70077.0,70076.0,0.15]
[1722258715914,0.14309939,70078.0,70077.0,0.15]
[1722258716128,0.1,70078.0,70077.0,0.15]
[1722258716324,0.0608,70090.0,70085.0,0.05]
[1722258716521,0.14309939,70089.0,70085.0,0.05]
[1722258716766,0.1,70088.0,70085.0,0.05]
[1722258717033,0.14309939,70087.0,70085.0,0.05]
[1722258717238,0.14309939,70087.0,70082.0,0.1]
[1722258717239,0.14309939,70087.0,70081.0,0.049]
[1722258717458,0.1,70086.0,70076.0,0.049]
[1722258717632,0.14309939,70085.0,70077.0,0.05]
[1722258717807,0.1,70084.0,70077.0,0.05]
[1722258718141,0.14309939,70083.0,70077.0,0.05]
[1722258718704,0.14309939,70083.0,70074.0,0.099]
[1722258718705,0.12699175,70082.0,70074.0,0.049]
[1722258718902,0.17009114,70081.0,70074.0,0.049]
[1722258719107,0.1,70080.0,70074.0,0.149]
[1722258719304,0.14309939,70079.0,70074.0,0.149]
[1722258719706,0.14309939,70079.0,70076.0,0.05]
[1722258720228,0.14309939,70079.0,70077.0,0.05]
[1722258720427,0.14309939,70079.0,70074.0,0.099]
[1722258720428,0.14309939,70079.0,70074.0,0.049]
[1722258720727,0.14309939,70079.0,70077.0,0.05]
[1722258720934,0.14309939,70079.0,70078.0,0.05]
[1722258721134,0.1,70080.0,70079.0,0.149]
[1722258721338,0.01094408,70090.0,70085.0,0.049]
[1722258721503,0.1701324,70089.0,70086.0,0.0015542]
[1722258721704,0.02703301,70088.0,70086.0,0.0015542]
[1722258721940,0.14309939,70087.0,70086.0,0.0015542]
[1722258722141,0.14309939,70087.0,70085.0,0.149]
[1722258722142,0.1701324,70087.0,70085.0,0.049]
[1722258722360,0.12703301,70086.0,70080.0,0.049]
[1722258722511,0.12703301,70086.0,70081.0,0.0015542]
[1722258722512,0.1701324,70085.0,70081.0,0.0015542]
[1722258722711,0.1701324,70085.0,70080.0,0.149]
[1722258722712,0.12703301,70084.0,70080.0,0.149]
[1722258722954,0.14309939,70083.0,70080.0,0.149]
[1722258723164,0.1,70082.0,70081.0,0.05]
[1722258723415,0.24309939,70082.0,70081.0,0.05]
[1722258723834,0.24309939,70082.0,70080.0,0.149]
[1722258724041,0.007,70089.0,70073.0,0.05]
[1722258724042,0.14309939,70081.0,70073.0,0.05]
[1722258724240,0.14309939,70081.0,70077.0,0.05]
[1722258724652,0.14309939,70081.0,70076.0,0.05]
[1722258725041,0.14309939,70081.0,70075.0,0.12054355]
[1722258725465,0.14309939,70081.0,70076.0,0.05]
[1722258725617,0.14309939,70081.0,70077.0,0.05]
[1722258725821,0.14309939,70081.0,70076.0,0.05]
[1722258726023,0.14309939,70081.0,70075.0,0.17054355]
[1722258726024,0.1,70080.0,70078.0,0.05]
[1722258726269,0.14309939,70079.0,70077.0,0.05]
[1722258726720,0.14309939,70079.0,70075.0,0.12054355]
[1722258726921,0.14309939,70079.0,70069.0,0.083]
[1722258726922,0.1,70078.0,70069.0,0.05]
[1722258727139,0.20329939,70077.0,70068.0,0.049]
[1722258727313,0.20329939,70077.0,70068.0,0.149]
[1722258727314,0.1,70076.0,70068.0,0.149]
[1722258727541,0.14309939,70075.0,70068.0,0.149]
[1722258727670,0.14309939,70075.0,70067.0,0.07154355]
[1722258727671,0.14309939,70075.0,70073.0,0.05]
[1722258727872,0.14309939,70075.0,70074.0,0.05]
[1722258728072,0.14309939,70075.0,70072.0,0.049]
[1722258728298,0.14309939,70075.0,70068.0,0.049]
[1722258729333,0.14309939,70075.0,70072.0,0.002]
[1722258729934,0.14309939,70075.0,70063.0,0.468]
[1722258729935,0.14309939,70075.0,70066.0,0.049]
[1722258730144,0.1,70074.0,70067.0,0.049]
[1722258730346,0.14309939,70073.0,70067.0,0.049]
[1722258730746,0.14309939,70073.0,70068.0,0.05]
[1722258730949,0.14309939,70073.0,70067.0,0.149]
[1722258731357,0.14309939,70073.0,70067.0,0.049]
[1722258731795,0.31929939,70072.0,70061.0,0.049]
[1722258732000,0.31929939,70072.0,70054.0,0.049]
[1722258732001,0.142731,70062.0,70054.0,0.049]
[1722258732220,0.14309939,70061.0,70054.0,0.049]
[1722258732402,0.02726716,70060.0,70054.0,0.049]
[1722258732600,0.14309939,70059.0,70054.0,0.049]
[1722258733007,0.14309939,70059.0,70051.0,0.12154355]
[1722258733227,0.14309939,70059.0,70044.0,0.0833]
[1722258733228,0.1,70058.0,70052.0,0.07154355]
[1722258733566,0.17034067,70057.0,70056.0,0.149]
[1722258733784,0.1,70058.0,70057.0,0.149]
[1722258733924,0.27033669,70058.0,70057.0,0.149]
[1722258734125,0.27033669,70058.0,70056.0,0.05]
[1722258734347,0.0272373,70057.0,70055.0,0.049]
[1722258734529,0.14309939,70056.0,70055.0,0.049]
[1722258734761,0.14309939,70056.0,70047.0,0.049]
[1722258734762,0.17033669,70056.0,70047.0,0.049]
[1722258734963,0.17033669,70056.0,70049.0,0.07154355]
[1722258734964,0.0272373,70055.0,70049.0,0.07154355]
[1722258735160,0.14309939,70054.0,70049.0,0.07154355]
[1722258735412,0.14309939,70054.0,70046.0,0.049]
[1722258735413,0.18230893,70053.0,70046.0,0.049]
[1722258735645,0.18230893,70053.0,70034.0,0.0794]
[1722258735646,0.40039939,70050.0,70038.0,0.049]
[1722258735843,0.13955893,70049.0,70038.0,0.05]
[1722258736075,0.13955893,70049.0,70033.0,0.6323]
[1722258736076,0.14309939,70047.0,70036.0,0.049]
[1722258736258,0.03940278,70046.0,70036.0,0.049]
[1722258736456,0.18250217,70045.0,70041.0,0.05]
[1722258736694,0.18250217,70045.0,70040.0,0.05]
[1722258736695,0.03940278,70044.0,70040.0,0.05]
[1722258736899,0.03940278,70044.0,70036.0,0.049]
[1722258736900,0.18250217,70043.0,70036.0,0.049]
[1722258737107,0.03940278,70042.0,70036.0,0.049]
[1722258737281,0.17033669,70041.0,70040.0,0.05]
[1722258737509,0.14309939,70041.0,70040.0,0.05]
[1722258737902,0.14309939,70041.0,70039.0,0.05]
[1722258738050,0.14309939,70041.0,70036.0,0.099]
[1722258738051,0.14309939,70041.0,70034.0,0.05]
[1722258738259,0.03942816,70040.0,70033.0,0.517]
[1722258738470,0.14309939,70039.0,70036.0,0.05]
[1722258738668,0.14309939,70039.0,70033.0,0.517]
[1722258739255,0.14309939,70039.0,70025.0,0.049]
[1722258739256,0.14309939,70036.0,70025.0,0.049]
[1722258739534,0.14309939,70036.0,70032.0,0.05]
[1722258739535,0.02735276,70035.0,70032.0,0.05]
[1722258739656,0.14309939,70034.0,70028.0,0.05]
[1722258740148,0.14309939,70034.0,70029.0,0.05]
[1722258740594,0.14309939,70034.0,70025.0,0.049]
[1722258741167,0.40039939,70034.0,70018.0,0.517]
[1722258741372,0.40039939,70034.0,70022.0,0.049]
[1722258741373,0.14309939,70032.0,70022.0,0.049]
[1722258741579,0.28589139,70032.0,70022.0,0.049]
[1722258741826,0.242794,70031.0,70022.0,0.049]
[1722258742019,0.14309939,70030.0,70024.0,0.07154355]
[1722258742300,0.1,70029.0,70028.0,0.05]
[1722258742503,0.24309939,70029.0,70028.0,0.05]
[1722258742818,0.24309939,70029.0,70024.0,0.07154355]
[1722258742819,0.24309939,70029.0,70026.0,0.05]
[1722258743014,0.14309939,70028.0,70026.0,0.05]
[1722258743868,0.14309939,70028.0,70027.0,0.05]
[1722258744047,0.24309939,70028.0,70027.0,0.05]
[1722258744287,0.24309939,70028.0,70027.0,0.149]
[1722258744461,0.24309939,70028.0,70027.0,0.05]
[1722258744664,0.24309939,70028.0,70027.0,0.149]
[1722258745243,0.14309939,70028.0,70027.0,0.149]
[1722258745450,0.23051,70045.0,70035.0,0.05]
[1722258745741,0.14309939,70043.0,70028.0,0.149]
[1722258745912,0.1,70042.0,70032.0,0.07154355]
[1722258746155,0.1,70042.0,70030.0,0.05]
[1722258746156,0.14309939,70036.0,70025.0,0.048]
[1722258746375,0.14309939,70036.0,70024.0,0.07154355]
[1722258746376,0.14309939,70032.0,70024.0,0.05]
[1722258746570,0.2573,70027.0,70018.0,0.05]
[1722258746845,0.2573,70027.0,70011.0,1.3322]
[1722258746846,0.1,70026.0,70020.0,0.05]
[1722258747060,0.1,70026.0,70018.0,0.05]
[1722258747481,0.14309939,70024.0,70018.0,0.05]
[1722258747699,0.023,70023.0,70017.0,0.05]
[1722258747905,0.14309939,70022.0,70017.0,0.05]
[1722258748310,0.14309939,70022.0,70013.0,0.048]
[1722258748520,0.14309939,70022.0,70018.0,0.05]
[1722258748724,0.14309939,70022.0,70019.0,0.05]
[1722258748949,0.14309939,70022.0,70015.0,0.05]
[1722258749091,0.14309939,70022.0,70014.0,0.05]
[1722258749092,0.1,70021.0,70014.0,0.05]
[1722258749290,0.14309939,70020.0,70019.0,0.05]
[1722258749493,0.24309939,70020.0,70016.0,0.11954355]
[1722258749700,0.14309939,70020.0,70017.0,0.05]
[1722258749935,0.14309939,70020.0,70019.0,0.148]
[1722258750158,0.24309939,70020.0,70019.0,0.148]
[1722258751784,0.0655,70041.0,70039.0,0.05]
[1722258751982,0.0655,70041.0,70034.0,0.098]
[1722258751983,0.14309939,70040.0,70034.0,0.048]
[1722258752179,0.1,70039.0,70034.0,0.048]
[1722258752403,0.14309939,70038.0,70034.0,0.048]
[1722258752606,0.1,70037.0,70034.0,0.048]
[1722258752954,0.14309939,70036.0,70034.0,0.048]
[1722258753252,0.1,70035.0,70034.0,0.047]
[1722258753464,0.1,70035.0,70034.0,0.05]
[1722258753465,0.24309939,70035.0,70034.0,0.05]
[1722258754076,0.14309939,70035.0,70034.0,0.05]
[1722258754400,0.14309939,70035.0,70025.0,0.047]
[1722258754608,0.40039939,70032.0,70026.0,0.0015542]
[1722258754807,0.40039939,70032.0,70022.0,0.615]
[1722258755007,0.40039939,70032.0,70023.0,0.05]
[1722258755417,0.40039939,70032.0,70019.0,0.05]
[1722258755418,0.14309939,70025.0,70019.0,0.05]
[1722258755610,0.14309939,70025.0,70022.0,0.05]
[1722258755816,0.1,70024.0,70023.0,0.05]
[1722258756037,0.24309939,70024.0,70023.0,0.05]
[1722258756495,0.24309939,70024.0,70023.0,0.147]
[1722258756691,0.24309939,70024.0,70023.0,0.05]
[1722258756895,0.24309939,70024.0,70022.0,0.05]
[1722258757102,0.14309939,70023.0,70022.0,0.05]
[1722258757234,0.24309939,70023.0,70022.0,0.05]
[1722258757862,0.24309939,70023.0,70016.0,0.05]
[1722258758056,0.023,70022.0,70019.0,0.05]
[1722258758276,0.14309939,70021.0,70020.0,0.12154355]
[1722258759359,0.14309939,70021.0,70020.0,0.147]
[1722258759697,0.14309939,70021.0,70020.0,0.05]
[1722258760109,0.14309939,70021.0,70020.0,0.147]
[1722258760517,0.14309939,70021.0,70012.0,0.468]
[1722258760518,0.14309939,70021.0,70019.0,0.05]
[1722258760716,0.14309939,70021.0,70018.0,0.05]
[1722258760919,0.14309939,70021.0,70013.0,0.097]
[1722258760920,0.14309939,70021.0,70019.0,0.05]
[1722258761155,0.14309939,70021.0,70012.0,0.468]
[1722258761156,0.14309939,70021.0,70017.0,0.05]
[1722258761355,0.14309939,70021.0,70020.0,0.05]
[1722258762776,0.14309939,70021.0,70018.0,0.05]
[1722258762948,0.14309939,70021.0,70019.0,0.047]
[1722258763152,0.14309939,70021.0,70017.0,0.1]
[1722258763406,0.14309939,70021.0,70019.0,0.047]
[1722258763609,0.14309939,70021.0,70020.0,0.05]
[1722258763809,0.14309939,70021.0,70017.0,0.05]
[1722258764039,0.14309939,70021.0,70016.0,0.001]
[1722258764189,0.11349322,70020.0,70016.0,0.001]
[1722258764388,0.14309939,70019.0,70016.0,0.001]
[1722258764722,0.11349334,70018.0,70016.0,0.001]
[1722258764901,0.15659273,70017.0,70016.0,0.001]
[1722258765074,0.25659273,70017.0,70016.0,0.001]
[1722258765276,0.24309939,70017.0,70016.0,0.001]
[1722258765475,0.54226939,70017.0,70016.0,0.001]
[1722258765706,0.30707014,70017.0,70016.0,0.001]
[1722258766034,1.39283414,70017.0,70016.0,0.001]
[1722258766200,1.59399936,70017.0,70016.0,0.001]
[1722258766814,1.73499936,70017.0,70016.0,0.001]
[1722258767428,1.95975214,70017.0,70016.0,0.001]
[1722258767622,1.95975214,70017.0,70007.0,0.008844]
[1722258767623,0.800212,70008.0,70007.0,0.008844]
[1722258767788,1.65047332,70008.0,70007.0,0.008844]
[1722258768182,1.36479232,70008.0,70007.0,0.008844]
[1722258769464,1.07911132,70008.0,70007.0,0.008844]
[1722258769667,0.79343032,70008.0,70007.0,0.008844]
[1722258769967,1.07911132,70008.0,70007.0,0.008844]
[1722258770122,1.36479232,70008.0,70007.0,0.008844]
[1722258770336,1.07911132,70008.0,70007.0,0.008844]
[1722258770537,1.06537514,70008.0,70007.0,0.008844]
[1722258770916,1.36483212,70008.0,70007.0,0.008844]
[1722258771125,1.65051312,70008.0,70007.0,0.008844]
[1722258771328,1.36487448,70008.0,70007.0,0.008844]
[1722258772051,1.65055548,70008.0,70007.0,0.008844]
[1722258772249,1.36487448,70008.0,70007.0,0.008844]
[1722258772458,1.80135548,70008.0,70007.0,0.008844]
[1722258772683,1.51567448,70008.0,70007.0,0.008844]
[1722258773095,1.51539416,70008.0,70007.0,0.008844]
[1722258773368,1.81507516,70008.0,70007.0,0.008844]
[1722258773740,2.07444518,70008.0,70007.0,0.008844]
[1722258773946,2.12182097,70008.0,70007.0,0.008844]
[1722258774125,2.12182097,70008.0,70005.0,0.003988]
[1722258774126,1.52541,70006.0,70005.0,0.003988]
[1722258774327,1.83249419,70006.0,70005.0,0.003988]
[1722258774530,1.97559358,70006.0,70005.0,0.003988]
[1722258775783,1.54680519,70006.0,70005.0,0.003988]
[1722258775982,1.54380519,70006.0,70005.0,0.003988]
[1722258776185,1.25811619,70006.0,70005.0,0.003988]
[1722258777119,1.54414696,70006.0,70005.0,0.003988]
[1722258777628,1.54714696,70006.0,70005.0,0.003988]
[1722258777931,1.69024635,70006.0,70005.0,0.003988]
[1722258779164,1.54714696,70006.0,70005.0,0.003988]
[1722258779360,1.56956597,70006.0,70005.0,0.003988]
[1722258780026,1.83283596,70006.0,70005.0,0.003988]
[1722258780177,1.83270077,70006.0,70005.0,0.003988]
[1722258780597,1.81895414,70006.0,70005.0,0.003988]
[1722258780798,1.83279078,70006.0,70005.0,0.003988]
[1722258780998,1.69020117,70006.0,70005.0,0.003988]
[1722258781620,1.54710178,70006.0,70005.0,0.003988]
[1722258782419,1.54716483,70006.0,70005.0,0.003988]
[1722258782652,1.54416483,70006.0,70005.0,0.003988]
[1722258782896,1.25847005,70006.0,70005.0,0.003988]
[1722258783244,1.41577816,70006.0,70005.0,0.003988]
[1722258783451,1.13008916,70006.0,70005.0,0.003988]
[1722258783652,1.10767005,70006.0,70005.0,0.003988]
[1722258783891,0.79898105,70006.0,70005.0,0.003988]
[1722258784068,1.08467005,70006.0,70005.0,0.003988]
[1722258784853,0.79898105,70006.0,70005.0,0.003988]
[1722258785050,0.82198105,70006.0,70005.0,0.003988]
[1722258785417,0.83598105,70006.0,70005.0,0.003988]
[1722258785699,0.83573195,70006.0,70005.0,0.003988]
[1722258786057,0.22118895,70006.0,70005.0,0.053988]
[1722258786259,0.22118895,70006.0,70005.0,0.0055422]
[1722258786260,0.19818895,70006.0,70005.0,0.0055422]
[1722258786629,0.22060685,70006.0,70005.0,0.12708575]
[1722258786746,0.1931621,70006.0,70005.0,0.07708575]
[1722258786946,0.1931621,70006.0,70005.0,0.12553155]
[1722258787343,0.17951729,70006.0,70005.0,0.26973155]